Cogmind - Beta 16.1 @@@ ROGUE MODE // 2026.04.20 @ 19:06:37 Player: RadicalRoss Result: Destroyed by Autobeam Turret with Autobeam Performance ------------- Evolutions (0) 0 Regions Visited (3) 600 Robots Destroyed (23) 115 Value Destroyed (500) 500 Prototype IDs (0) 0 Alien Tech Used (0) 0 Bonus (-32) -32 TOTAL SCORE: 1183 Bonus ------- Friendly Fire -32 Cogmind --------- Core Integrity 0/250 Matter 300/300 Energy 188/200 System Corruption 2% Temperature Cool (46) Movement Walking (190) Ox1 Location -10/Subcaves Parts ------- > --- POWER (1) -------- Subdweller Power Source > --- PROPULSION (2) --- Aluminum Leg Aluminum Leg > --- UTILITY (2) ------ Large Storage Unit Seismic Detector > --- WEAPON (2) ------- Beamcaster Subdweller Beam Cannon > --- INVENTORY (15) --- Subdweller Power Source Subdweller Power Source Carbon-fiber Leg Carbon-fiber Leg ECM Suite Scrap Shield Small Laser Small Laser Subdweller Laser Battle Rifle Subdweller Machine Gun Barrage Gun Scrap Shield Fragment (45) Scrap Shield Fragment (45) Peak State ------------ > --- POWER ------------ Subdweller Power Source > --- PROPULSION ------- Aluminum Leg Aluminum Leg > --- UTILITY ---------- Large Storage Unit Seismic Detector > --- WEAPON ----------- Beamcaster Subdweller Beam Cannon > --- INVENTORY -------- Subdweller Power Source Subdweller Power Source Carbon-fiber Leg Carbon-fiber Leg ECM Suite Scrap Shield Small Laser Small Laser Subdweller Laser Battle Rifle Subdweller Machine Gun Barrage Gun Scrap Shield Fragment Scrap Shield Fragment [Rating: 16] Favorites ----------- Power Ion Engine Engine Ion Engine Power Core Light Nuclear Core Propulsion Aluminum Leg Leg Aluminum Leg Wheel Wheel Hover Unit Hover Unit Utility Seismic Detector Device Seismic Detector Storage Large Storage Unit Weapon Small Laser Energy Gun Small Laser Energy Cannon Subdweller Beam Cannon Ballistic Gun Light Assault Rifle Launcher Grenade Launcher Special Weapon Enhanced Flamer Build | -11 -10 -10 -10 ------- Run | Yrd Mat Min Sub Slots Evolved . | . . . . Power . | . . . . Propulsion . | . . . . Utility . | . . . . Weapon . | . . . . Parts Attached 19 | 6 7 3 3 Power 4 | 1 2 . 1 Engine 3 | 1 1 . 1 Core 1 | . 1 . . Reactor . | . . . . Propulsion 6 | 2 2 2 . Treads . | . . . . Leg 2 | . . 2 . Wheel 2 | 2 . . . Hover 2 | . 2 . . Flight . | . . . . Utility 2 | 1 1 . . Device 1 | 1 . . . Storage 1 | . 1 . . Processor . | . . . . Hackware . | . . . . Protection . | . . . . Artifact . | . . . . Weapon 7 | 2 2 1 2 Energy Gun 2 | 1 . . 1 Energy Cannon 1 | . . . 1 Ballistic Gun 2 | 1 1 . . Ballistic Cannon . | . . . . Launcher 1 | . 1 . . Special Weapon 1 | . . 1 . Impact Weapon . | . . . . Slashing Weapon . | . . . . Piercing Weapon . | . . . . Special Melee Weapon . | . . . . Unidentified Prototypes . | . . . . Parts Lost 7 | . 5 . 2 Power 2 | . 1 . 1 Propulsion 2 | . 2 . . Utility . | . . . . Weapon 3 | . 2 . 1 Highest Loss Streak 4 | . 4 . 2 To Critical Strikes . | . . . . Average Backups 7 | 2 5 6 9 Power 1 | . 1 2 2 Propulsion 1 | 1 2 1 1 Utility 1 | . . 1 1 Weapon 3 | . 1 2 4 Tool/Special . | . . . . Unused Backups 11 | . . . 11 Power 2 | . . . 2 Propulsion 2 | . . . 2 Utility 2 | . . . 2 Weapon 5 | . . . 5 Tool/Special . | . . . . Average Slot Usage (%) 92 | . 87 77 99 Engine 8 | . 5 . 13 Leg 18 | . . 12 28 Wheel 3 | . 15 . . Hover 3 | . 9 8 . Device 14 | . 14 14 14 Storage 13 | . 12 14 14 Energy Gun 13 | . 10 14 14 Energy Cannon 2 | . . . 4 Ballistic Gun 5 | . 13 11 . Special Weapon 5 | . . 2 9 Peak Build Rating 16 | 6 9 8 16 Average Rating 9 | 3 6 5 13 On Entrance 4 | . 6 5 8 Avg Prop Armor Cover (%) . | . . . . Naked Turns . | . . . . Heaviest Build 39 | 7 31 24 39 Greatest Support 20 | 20 20 20 20 Greatest Overweight (x) 3 | . 3 3 1 Average Overweight (x) 1 | . 1 1 1 Largest Inventory Capacity 15 | 5 15 15 15 Average Capacity 14 | 5 14 15 15 Most Carried 15 | 5 8 7 15 Average Carried 9 | 2 5 6 12 Final Capacity 15 | 5 15 15 15 Final Carried 15 | 3 7 6 15 Class Distribution -------------------- 82% | Mutant 17% | Scavenger-Mutant Dominant Class ---------------- Mutant | -10/Materials Mutant | -10/Mines Mutant | -10/Subcaves Resources | -11 -10 -10 -10 ----------- Run | Yrd Mat Min Sub Matter Collected 615 | 278 249 . 88 Remotely . | . . . . Salvage Created 452 | 71 325 . 56 Parts 34 | 1 30 . 3 Haulers Intercepted . | . . . . Recyclers Shooed . | . . . . Parts Field Recycled . | . . . . Retrieved Matter . | . . . . Parts Self-Destructed 6 | . . . 6 Prevented . | . . . . Parts Restored . | . . . . Kills | -11 -10 -10 -10 ------- Run | Yrd Mat Min Sub Combat Hostiles Destroyed 13 | 1 10 . 2 Guns 5 | 1 4 . . Cannons 1 | . . . 1 AOE 6 | . 6 . . Classes Destroyed 9 | 2 6 . 1 Worker 3 | . 3 . . Builder 1 | . 1 . . Tunneler 1 | 1 . . . Recycler 2 | . 2 . . Mechanic 1 | . 1 . . Watcher 2 | . 2 . . Swarmer 4 | . 3 . 1 Grunt 8 | 1 7 . . Subdweller 1 | . . . 1 Best Kill Streak 13 | 2 13 . 1 Combat Bots Only 6 | 1 6 . 1 Max Kills in Single Turn 3 | 1 3 . 1 Gunslinging . | . . . . Exploded 2 | . 2 . . Melee . | . . . . Uniques/NPCs Destroyed . | . . . . Combat | -11 -10 -10 -10 -------- Run | Yrd Mat Min Sub Hostile Shots Fired 100 | 8 58 . 34 Missed 34 | 1 19 . 14 Hits 66 | 7 39 . 20 Projectile 66 | 7 39 . 20 Critical Strikes 4 | . 2 . 2 Damage Taken 999 | 76 527 . 396 Core 251 | 33 104 . 114 Absorbed by Shields . | . . . . Core Remaining (%) 86 | 86 . . . Volleys Fired 54 | 6 34 . 14 Largest 2 | 2 2 . 2 Hottest 155 | 60 60 . 155 Shots Fired 106 | 12 64 . 30 Gun 78 | 12 50 . 16 Cannon 4 | . . . 4 Launcher 14 | . 14 . . Special 10 | . . . 10 Kinetic 36 | 6 30 . . Thermal 56 | 6 20 . 30 Explosive 14 | . 14 . . Electromagnetic . | . . . . Robot Hit Streak 10 | 4 4 . 10 Robot Miss Streak 4 | 2 4 . 3 Penetration Max . | . . . . Secondary Targets . | . . . . Shots Hit Robots 58 | 7 31 . 20 Core Hits 41 | 3 33 . 5 Critical Kills . | . . . . Critical Parts Destroyed . | . . . . Critical Strikes 3 | . . . 3 Burn 3 | . . . 3 Melee Attacks . | . . . . Impact . | . . . . Slashing . | . . . . Piercing . | . . . . Sneak Attacks . | . . . . Combat Hostiles . | . . . . Follow-up Attacks . | . . . . Damage Inflicted 1746 | 101 1335 . 310 Guns 522 | 101 262 . 159 Cannons 51 | . . . 51 Explosions 1062 | . 1062 . . Melee . | . . . . Ramming 11 | . 11 . . Kinetic 210 | 67 143 . . Thermal 599 | 34 255 . 310 Explosive 926 | . 926 . . Electromagnetic . | . . . . Impact . | . . . . Slashing . | . . . . Piercing . | . . . . Highest Corruption 2 | . 2 2 2 Average Corruption 2 | . 2 2 2 Corruption Purged . | . . . . Corruption Blocked . | . . . . Effects 20 | . 4 3 13 Message Errors 3 | . . 1 2 Matter Fused 4 | . 1 1 2 Heat Flow Errors 4 | . 1 . 3 Energy Discharges 1 | . . . 1 Parts Fused 1 | . 1 . . Data Loss (minor) 3 | . . 1 2 Data Loss (major) 2 | . 1 . 1 Misfires 2 | . . . 2 Overload Shots . | . . . . Overflow Damage 69 | . 69 . . Projectiles . | . . . . Explosions 69 | . 69 . . Melee . | . . . . Knockbacks . | . . . . Impact . | . . . . Kinetic . | . . . . Secondary . | . . . . Self-Inflicted Damage 45 | . 45 . . Shots 1 | . 1 . . Rammed 1 | . 1 . . Targets Rammed 1 | . 1 . . Kicked . | . . . . Crushed . | . . . . Highest Temperature 154 | 42 154 . 133 Average Temperature 32 | 25 26 . 54 Received Heat Transfer 408 | 42 297 . 69 Siege Activations . | . . . . Martial Activations . | . . . . Shielding Activations . | . . . . Robots Disrupted 1 | . . . 1 Combat Hostiles 1 | . . . 1 Robots Corrupted . | . . . . Combat Hostiles . | . . . . Parts Fried . | . . . . Impact Corruptions . | . . . . Robots Melted 1 | . . . 1 Combat Hostiles 1 | . . . 1 Parts Melted 1 | . . . 1 Heat Transferred 2047 | 75 375 . 1597 Parts Sabotaged . | . . . . Parts Stolen . | . . . . Parts Stripped . | . . . . Power Chain Reactions . | . . . . Alert | -11 -10 -10 -10 ------- Run | Yrd Mat Min Sub Maximum Alert Level 1 | . 1 . . Low Security (%) 70 | 100 38 100 . Level 1 29 | . 61 . . Level 2 . | . . . . Level 3 . | . . . . Level 4 . | . . . . Level 5 . | . . . . High Security . | . . . . Max Security . | . . . . Peak Influence 273 | 25 273 90 . Initial 90 | . 9 90 . Average 87 | 1 160 26 . Influence Increases 468 | 25 423 . 20 Destroy 0b10 Robot/C 240 | 20 200 . 20 Destroy 0b10 Robot/NC 50 | 5 45 . . Destroy Leader 54 | . 54 . . Disable Machine 75 | . 75 . . Destroy Structure 49 | . 49 . . Influence Decreases 468 | 10 205 233 20 Entered New Map 149 | . 6 143 . Time Decay 269 | 10 149 90 20 Lost Part 50 | . 50 . . Squads Dispatched 2 | . 2 . . Investigation 1 | . 1 . . Extermination . | . . . . Reinforcement 1 | . 1 . . Assault . | . . . . Garrison . | . . . . Intercept . | . . . . Searches Triggered . | . . . . Construction Impeded . | . . . . Haulers Reinforced . | . . . . Active Scanning Responses . | . . . . Cargo Convoy Interrupts . | . . . . Stealth | -11 -10 -10 -10 --------- Run | Yrd Mat Min Sub Distress Signals 1 | . 1 . . Communications Jammed . | . . . . Distress Signals . | . . . . Times Spotted 36 | 1 18 . 17 Peak Tracking Total 6 | 1 6 . 6 Tactical Retreats . | . . . . Traps | -11 -10 -10 -10 ------- Run | Yrd Mat Min Sub Traps Triggered 2 | . 2 . . Indirectly . | . . . . Trap Hack Attempts . | . . . . Triggered . | . . . . Disarmed . | . . . . Reprogrammed . | . . . . Reused . | . . . . Traps Extracted . | . . . . Installed . | . . . . Triggered . | . . . . Machines | -11 -10 -10 -10 ---------- Run | Yrd Mat Min Sub Machines Disabled 5 | . 5 . . Max in Single Turn 2 | . 2 . . Machines Repaired . | . . . . Machines Dismantled . | . . . . Machines Sabotaged . | . . . . Overloaded Fab Kills . | . . . . Hacking | -11 -10 -10 -10 --------- Run | Yrd Mat Min Sub Machines Accessed . | . . . . Terminals . | . . . . Fabricators . | . . . . Repair Stations . | . . . . Recycling Units . | . . . . Scanalyzers . | . . . . Garrison Access . | . . . . Total Hacks . | . . . . Successful . | . . . . Failed . | . . . . Catastrophic . | . . . . Database Lockouts . | . . . . Manual . | . . . . Terminals . | . . . . Fabricators . | . . . . Repair Stations . | . . . . Recycling Units . | . . . . Scanalyzers . | . . . . Garrison Access . | . . . . Terminal Hacks . | . . . . Fabricator Hacks . | . . . . Repair Station Hacks . | . . . . Recycling Unit Hacks . | . . . . Scanalyzer . | . . . . Garrison Access Hacks . | . . . . Unauthorized Hacks . | . . . . Terminals . | . . . . Fabricators . | . . . . Repair Stations . | . . . . Recycling Units . | . . . . Scanalyzers . | . . . . Garrison Access . | . . . . Data Cores Recovered . | . . . . Used . | . . . . Hacking Detections . | . . . . Full Trace Events . | . . . . Feedback Events . | . . . . Feedback Blocked . | . . . . Robot Schematics Acquired . | . . . . Robots Built . | . . . . Authchips . | . . . . Time . | . . . . Total Robot Build Rating . | . . . . Part Schematics Acquired . | . . . . Parts Built . | . . . . Authchips . | . . . . Time . | . . . . Total Part Build Rating . | . . . . Part Studies Acquired . | . . . . Parts Repaired . | . . . . Time . | . . . . Parts Recycled . | . . . . Recycled Matter . | . . . . Retrieved Matter . | . . . . Retrieved Components . | . . . . Parts Scanalyzed . | . . . . Part Schematics Acquired . | . . . . Parts Damaged . | . . . . Bothacking | -11 -10 -10 -10 ------------ Run | Yrd Mat Min Sub Used RIF Installer . | . . . . Robots Hacked . | . . . . Non-combat . | . . . . Combat . | . . . . Robot Hacks Applied . | . . . . Relay Couplers Released . | . . . . Fabnet Peak Effective % . | . . . . Robots Rewired . | . . . . Allies Hacked . | . . . . Hacks Repelled . | . . . . Allies | -11 -10 -10 -10 -------- Run | Yrd Mat Min Sub Total Allies . | . . . . Largest Group . | . . . . Highest-Rated Group . | . . . . Highest-Rated Ally . | . . . . Total Orders . | . . . . Ally Attacks . | . . . . Total Damage . | . . . . Kills . | . . . . Allies Corrupted . | . . . . Allies Melted . | . . . . Intel | -11 -10 -10 -10 ------- Run | Yrd Mat Min Sub Active Infowar (turns) 1663 | 2 390 341 930 Seismic 1663 | 2 390 341 930 Robot Analysis Total . | . . . . Derelict Logs Recovered . | . . . . Drone Launches . | . . . . Drone Recoveries . | . . . . Exploration | -11 -10 -10 -10 ------------- Run | Yrd Mat Min Sub Turns Passed 1746 | 85 390 341 930 Spaces Moved 945 | 72 262 157 454 Core 17 | 17 . . . Treads . | . . . . Legs 534 | . . 80 454 Wheels 238 | 55 183 . . Hover 156 | . 79 77 . Flight . | . . . . Fastest Speed 50 | 50 80 190 190 Average Speed 161 | 72 105 214 190 Slowest Speed 240 | 80 240 240 190 Overloaded Moves . | . . . . Propulsion Burnouts . | . . . . Robots Hopped . | . . . . Potential Cave-ins . | . . . . Cave-ins Triggered . | . . . . Exploration Rate (%) 29 | 5 51 32 30 Regions Visited 3 Branch Regions 2 Pre-discovered Areas . | . . . . Known Exits Taken . | . . . . Unknown Exits Taken 3 | 1 1 1 . Scrap Searched . | . . . . Spaces Dug . | . . . . Terrain Destroyed 50 | . 49 . 1 Melee . | . . . . Projectile 1 | . . . 1 AOE 49 | . 49 . . Terrain Rammed . | . . . . Walls Destroyed . | . . . . Machines Disabled . | . . . . Actions | -11 -10 -10 -10 --------- Run | Yrd Mat Min Sub Total 1057 | 92 314 161 490 Wait 1 | . . 1 . Move 942 | 71 261 156 454 Hop . | . . . . Pick Up 33 | 9 9 1 14 Fast Attach . | . . . . Attach 14 | 6 4 1 3 Detach . | . . . . Swap 7 | . 4 2 1 Drop 5 | . 1 . 4 Fire 54 | 6 34 . 14 Melee . | . . . . Ram 1 | . 1 . . Kick . | . . . . Crush . | . . . . Escape Stasis . | . . . . Rewire . | . . . . Trap . | . . . . Miscellaneous . | . . . . Route ------- -11/Scrapyard -10/Materials -10/Mines (discovered 2 exits: [*Mat] / [*Sub]) -10/Subcaves (discovered 1 exit: [*Rec]) History --------- Turn | Location | Event 2 | -11/Scrapyard | Met Revision 17 56 | -11/Scrapyard | Discovered new exit (range 8) 86 | -11/Scrapyard | Entered Materials 240 | -10/Materials | Discovered new exit (range 15) 312 | -10/Materials | Build established: Mutant 323 | -10/Materials | Lost 4 parts (1p1n2w) 454 | -10/Materials | Core integrity fell below 50% 476 | -10/Materials | Entered Mines 749 | -10/Mines | A weapon hastily lodged in a ceiling crevice suddenly fell to the ground 776 | -10/Mines | Discovered new exit (range 10) 810 | -10/Mines | Discovered new exit (range 5) 817 | -10/Mines | Entered Subcaves 818 | -10/Subcaves | Approached by a straggling Scientist 1084 | -10/Subcaves | Ambushed by swarm of Subdwellers 1428 | -10/Subcaves | Core integrity fell below 20% 1671 | -10/Subcaves | Shifting Twisted Machinery released Battle Rifle 1721 | -10/Subcaves | Shifting Twisted Machinery released Barrage Gun 1735 | -10/Subcaves | Build established: Scavenger-Mutant 1745 | -10/Subcaves | Discovered new exit (range 11) 1747 | -10/Subcaves | Destroyed by Autobeam Turret with Autobeam Last Messages --------------- System corrupted: Beamcaster misfires. Battle Rifle falls loose from the Twisted Machinery. OR-WRW(c): "I think it's somewhere northwest of here" Barrage Gun falls loose from the Twisted Machinery. OR-WRW(c): "We're getting close, I can feel it." Acquired Barrage Gun. S-10 Pest springs to life. HV Slug penetrates Wall. Machine disabled. S-10 Pest springs to life. JB-VKL(g) destroyed. EXIT=FOUND [Achievement: Deductive Reasoning] Notice for Steam players: Cogmind player global achievement rates displayed by Steam are all underreported, in many cases by a huge margin, due to how they are calculated by Valve. Map ----- +----------------------------------------------------+ | ??????????????????????????????##????????##??####?? | | ?????????????????????????????????????????????????? | | ?????????????????????????????????????????????????? | | ?????????????????????????????????????????????????? | | ?????????????????????????????????????????????????? | | ?????????????????????????????????????????????????? | | ?????????????????????????????????????????????????? | | ?????????????????????????????????????????????????? | | ?????????????????????????????????????????????????# | | ??????????????????????????????????????#####?????## | | ??????????????????????????????????????# ####### | | ??????????????????????????????????????## ## | | ???????????????????????????????????????## | | ????????????????????????????????????????# | | ?????????????????????????????##?????????## | | ???????????????????????????##<#??#######?# | | ???????????????? ## ???????"" ???"## ### # | | ???????????????? ????? " ?? "## ## #### | | ???????????????? ????? t?? ## ### ##??? | | ???????????????? #???? ? s## ### ##??? | | ???????????????? ???? ? ## ## #??? | | ?????????##?????# ???? ??# ##?? | | ????????## ????## ???##s#s s#???## ### | | ????????# #???? ???## #?#### | | ?????????# ###? #???# #??# ## | | ????????## #?# #???# @ #???# #### | | ????????# ### #??## * ##???# ##?## | | ?????????# #?## !% #????## #??# | | ??????????# ### h [ #?????# #?## | | ??????????# ""#####?????# #### | | ??????????# " ##?????????###??# | | ?????????## "##???????????????# | | ????????## ##?????######?##### | | ????????# ##?????## ## ### ## | | ????????# #?????## # ##? | | ????????# ######????## "" ##?? | | ????????# #????????## """ ## ## ##???? | | ???????## ##???##### ##" #### #####????? | | ?????### ##### ""##"" #?###??????????# | | ?????# "" """" " ?????????????? | | ????# ["# "" """ ????????????? | | ???# # ####"" " ???????????? | | ???### ## #####??#" #### ???????????? | | ????# ### #??????## #??? ???????????? | | ????# ## #?# ##????????# ????? ??????????? | | ????# #?# #?# #??????????? ???????????????? | | ????# ?? ??# #?????????????????????????????? | | ???# #? ? ?????????????????????????????? | | ??? ??? ????????????????????????????? | | ??????? ##????????????????????????????? | +----------------------------------------------------+ Best States ------------- Heat Dissipation 25 Energy Generation 15 Energy Capacity 250 Matter Stores 300 Matter Capacity 300 Sight Range 16 Terrain Scan Density 10 Evasion (%) 50 Item Schematics ----------------- None Robot Schematics ------------------ None Fabricated ------------ Nothing Repaired ---------- Nothing Studied --------- None Alien Tech Used ----------------- None Achievements -------------- Crack Shot Deductive Reasoning It's Just You Challenges ------------ None Game ------ Seed ImprovedIntegrityNanovents Manual? 0 Play Time 00:28:33 Cumulative 1.1 hours Start 2026.04.20 @ 18:11:57 End 2026.04.20 @ 19:06:37 Sessions 1 Manual Loads 0 Difficulty Rogue Special Mode None Game No. 3 Rogue 3 Adventurer 0 Explorer 0 Win Type - Total 0 Types 0/0/0/0/0/0/0/0/0/0 Lore% 0 Gallery% 2 Achievement% 3 Wizard Run 0 Options --------- Layout 1 ASCII 0 Keyboard 0 Movement Mouse Keybinds 0 Fullscreen 1 Font 32/Swanston Map View 50x35 Zoom Use 0% Tactical HUD 0 Map Filters NONE Filters NONE Steam 1 RUN: 67a5d777-c133-4c56-90ac-d04b02802522